Cogmind - Beta 17 @@@ ROGUE MODE // 2026.06.27 @ 00:55:57 Player: Arzee Result: Self-destructed Performance ------------- Evolutions (2) 1000 Regions Visited (3) 600 Robots Destroyed (43) 215 Value Destroyed (830) 830 Prototype IDs (1) 20 Alien Tech Used (0) 0 Bonus (0) 0 TOTAL SCORE: 2665 Bonus ------- None Cogmind --------- Core Integrity 140/550 Matter 230/300 Energy 75/100 System Corruption 0% Temperature Cool (0) Movement Walking (400) Ox4 Location -8/Materials Parts ------- > --- POWER (1) -------- (None) > --- PROPULSION (4) --- Aluminum Leg > --- UTILITY (4) ------ High-capacity Storage Unit Signal Interpreter > --- WEAPON (2) ------- Axe > --- INVENTORY (20) --- Ion Engine Large Storage Unit Sensor Array Reaction Control System Axe Peak State ------------ > --- POWER ------------ Deuterium Engine > --- PROPULSION ------- Light Treads Light Treads Light Treads Improved Treads > --- UTILITY ---------- High-capacity Storage Unit Signal Interpreter Improved Targeting Computer Medium Armor Plating > --- WEAPON ----------- Enhanced Autogun Enhanced Autogun > --- INVENTORY -------- Ion Engine Improved Ion Engine Light Treads Light Treads Aluminum Leg Aluminum Leg Aluminum Leg Aluminum Leg Aluminum Leg Aluminum Leg Aluminum Leg Large Storage Unit Sensor Array Reaction Control System Medium Armor Plating Medium Armor Plating Grenade Launcher [Rating: 24] Favorites ----------- Power Light Ion Engine Engine Light Ion Engine Propulsion Light Treads Treads Light Treads Leg Aluminum Leg Utility Signal Interpreter Storage High-capacity Storage Unit Processor Signal Interpreter Protection Medium Armor Plating Weapon Light Assault Rifle Ballistic Gun Light Assault Rifle Launcher Grenade Launcher Slashing Weapon Axe Build | -11 -10 -9 -8 ------- Run | Yrd Mat Mat Mat Slots Evolved 4 | . . 2 2 Power . | . . . . Propulsion 2 | . . 1 1 Utility 2 | . . 1 1 Weapon . | . . . . Parts Attached 42 | 5 10 5 22 Power 5 | 1 1 2 1 Engine 5 | 1 1 2 1 Core . | . . . . Reactor . | . . . . Propulsion 19 | 2 3 1 13 Treads 9 | . 2 1 6 Leg 10 | 2 1 . 7 Wheel . | . . . . Hover . | . . . . Flight . | . . . . Utility 9 | . 4 1 4 Device . | . . . . Storage 2 | . 2 . . Processor 3 | . 2 1 . Hackware . | . . . . Protection 4 | . . . 4 Artifact . | . . . . Weapon 9 | 2 2 1 4 Energy Gun . | . . . . Energy Cannon . | . . . . Ballistic Gun 6 | 2 1 1 2 Ballistic Cannon . | . . . . Launcher 1 | . 1 . . Special Weapon . | . . . . Impact Weapon . | . . . . Slashing Weapon 2 | . . . 2 Piercing Weapon . | . . . . Special Melee Weapon . | . . . . Unidentified Prototypes 1 | . . . 1 Parts Lost 30 | . 3 2 25 Power 4 | . 1 1 2 Propulsion 18 | . 1 . 17 Utility 4 | . . . 4 Weapon 4 | . 1 1 2 Highest Loss Streak 17 | . 1 2 17 To Critical Strikes . | . . . . Average Backups 8 | . 4 11 14 Power . | . . . 1 Propulsion 4 | . 2 6 7 Utility 2 | . 1 3 4 Weapon . | . . 1 1 Tool/Special . | . . . . Unused Backups 4 | . . . 4 Power . | . . . . Propulsion . | . . . . Utility 3 | . . . 3 Weapon 1 | . . . 1 Tool/Special . | . . . . Average Slot Usage (%) 92 | . 95 90 90 Engine 10 | . 13 9 8 Treads 17 | . 1 33 29 Leg 12 | . 26 . 2 Storage 11 | . 13 11 9 Processor 13 | . 11 15 15 Protection 2 | . . . 8 Ballistic Gun 16 | . 22 15 7 Launcher 4 | . 4 5 4 Slashing Weapon 1 | . . . 4 Peak Build Rating 24 | 5 8 14 24 Average Rating 10 | 3 6 9 17 On Entrance 6 | . 5 8 14 Avg Prop Armor Cover (%) . | . . . . Naked Turns . | . . . . Heaviest Build 69 | 6 47 51 69 Greatest Support 83 | 20 40 60 83 Greatest Overweight (x) 18 | . 4 . 18 Average Overweight (x) . | . . . . Largest Inventory Capacity 20 | 5 20 20 20 Average Capacity 15 | 5 10 20 20 Most Carried 19 | 1 10 16 19 Average Carried 9 | . 4 11 14 Final Capacity 20 | 5 20 20 20 Final Carried 16 | 1 10 16 5 Class Distribution -------------------- 86% | Mutant 13% | Scavenger-Mutant Dominant Class ---------------- Mutant | -10/Materials Mutant | -9/Materials Mutant | -8/Materials Resources | -11 -10 -9 -8 ----------- Run | Yrd Mat Mat Mat Matter Collected 1024 | 190 288 225 321 Remotely . | . . . . Salvage Created 1083 | 40 348 245 450 Parts 86 | 1 19 22 44 Haulers Intercepted 5 | . 2 1 2 Recyclers Shooed . | . . . . Parts Field Recycled . | . . . . Retrieved Matter . | . . . . Parts Self-Destructed . | . . . . Prevented . | . . . . Parts Restored . | . . . . Kills | -11 -10 -9 -8 ------- Run | Yrd Mat Mat Mat Combat Hostiles Destroyed 32 | 1 9 9 13 Melee 1 | . . . 1 Guns 18 | 1 9 3 5 AOE 13 | . . 6 7 Classes Destroyed 7 | 1 3 2 1 Builder 5 | . . 1 4 Hauler 5 | . 2 1 2 Operator 1 | . 1 . . Swarmer 18 | . 6 6 6 Grunt 10 | 1 3 1 5 Brawler 1 | . . . 1 Sentry 3 | . . 2 1 Best Kill Streak 7 | 1 5 3 7 Combat Bots Only 5 | 1 5 3 5 Max Kills in Single Turn 3 | 1 2 3 3 Gunslinging 1 | . 1 . . Exploded 3 | . . 3 2 Melee 1 | . . . 1 Uniques/NPCs Destroyed . | . . . . Combat | -11 -10 -9 -8 -------- Run | Yrd Mat Mat Mat Hostile Shots Fired 272 | 5 61 39 167 Missed 74 | 2 18 7 47 Hits 198 | 3 43 32 120 Projectile 198 | 3 43 32 120 Critical Strikes 6 | . . . 6 Damage Taken 3689 | 31 429 517 2712 Core 517 | 11 48 48 410 Absorbed by Shields . | . . . . Core Remaining (%) 86 | 95 76 88 . Volleys Fired 92 | 4 45 24 19 Largest 2 | 2 2 2 2 Hottest 55 | 40 40 43 55 Shots Fired 160 | 8 89 33 30 Gun 145 | 8 88 27 22 Cannon . | . . . . Launcher 15 | . 1 6 8 Special . | . . . . Kinetic 145 | 8 88 27 22 Thermal . | . . . . Explosive 15 | . 1 6 8 Electromagnetic . | . . . . Robot Hit Streak 30 | 5 10 9 30 Robot Miss Streak 6 | 3 6 3 3 Penetration Max . | . . . . Secondary Targets 4 | . 4 . . Max Gunslinging Chain 1 | . 1 . . Shots Hit Robots 121 | 5 57 23 36 Core Hits 77 | 2 23 19 33 Critical Kills 1 | . 1 . . Critical Parts Destroyed 2 | . 2 . . Critical Strikes 3 | . 3 . . Destroy 3 | . 3 . . Melee Attacks 18 | . . . 18 Impact . | . . . . Slashing 18 | . . . 18 Piercing . | . . . . Sneak Attacks 4 | . . . 4 Combat Hostiles . | . . . . Follow-up Attacks . | . . . . Damage Inflicted 2637 | 52 591 515 1479 Guns 1132 | 52 586 242 252 Cannons . | . . . . Explosions 1022 | . 5 273 744 Melee 483 | . . . 483 Ramming . | . . . . Kinetic 1132 | 52 586 242 252 Thermal . | . . . . Explosive 1022 | . 5 273 744 Electromagnetic . | . . . . Impact . | . . . . Slashing 483 | . . . 483 Piercing . | . . . . Highest Corruption . | . . . . Average Corruption . | . . . . Corruption Purged . | . . . . Corruption Blocked . | . . . . Overload Shots . | . . . . Overflow Damage 80 | . . . 80 Projectiles . | . . . . Explosions 44 | . . . 44 Melee 36 | . . . 36 Knockbacks . | . . . . Impact . | . . . . Kinetic . | . . . . Secondary . | . . . . Self-Inflicted Damage 100 | . . 90 10 Shots 4 | . . 3 1 Rammed . | . . . . Targets Rammed . | . . . . Kicked . | . . . . Crushed . | . . . . Highest Temperature 12 | 12 9 7 11 Average Temperature 6 | 8 7 4 5 Received Heat Transfer 735 | 18 117 123 477 Siege Activations . | . . . . Martial Activations . | . . . . Shielding Activations . | . . . . Robots Disrupted . | . . . . Combat Hostiles . | . . . . Robots Corrupted . | . . . . Combat Hostiles . | . . . . Parts Fried . | . . . . Impact Corruptions . | . . . . Robots Melted . | . . . . Combat Hostiles . | . . . . Parts Melted . | . . . . Heat Transferred . | . . . . Parts Sabotaged . | . . . . Parts Stolen . | . . . . Parts Stripped . | . . . . Power Chain Reactions . | . . . . Alert | -11 -10 -9 -8 ------- Run | Yrd Mat Mat Mat Maximum Alert Level 1 | . . . 1 Low Security (%) 93 | 100 100 100 81 Level 1 6 | . . . 18 Level 2 . | . . . . Level 3 . | . . . . Level 4 . | . . . . Level 5 . | . . . . High Security . | . . . . Max Security . | . . . . Peak Influence 248 | 20 135 143 248 Initial 39 | . 6 1 39 Average 77 | 2 54 90 110 Influence Increases 958 | 20 267 273 398 Destroy 0b10 Robot/C 640 | 20 180 180 260 Destroy 0b10 Robot/NC 55 | . 15 10 30 Destroy Leader 130 | . 34 42 54 Disable Machine 15 | . 15 . . Destroy Structure 88 | . 8 41 39 Lose Combat Pursuer 30 | . 15 . 15 Influence Decreases 958 | 10 272 185 491 Entered New Map 62 | . 4 4 54 Time Decay 654 | 10 248 161 235 Lost Part 242 | . 20 20 202 Squads Dispatched 2 | . 1 . 1 Investigation . | . . . . Extermination . | . . . . Reinforcement 2 | . 1 . 1 Assault . | . . . . Garrison . | . . . . Intercept . | . . . . Searches Triggered . | . . . . Construction Impeded . | . . . . Haulers Reinforced . | . . . . Active Scanning Responses . | . . . . Cargo Convoy Interrupts . | . . . . Stealth | -11 -10 -9 -8 --------- Run | Yrd Mat Mat Mat Distress Signals 6 | . 1 3 2 Communications Jammed . | . . . . Distress Signals . | . . . . Times Spotted 56 | 1 18 16 21 Peak Tracking Total 7 | 1 4 4 7 Tactical Retreats 2 | . 1 . 1 Traps | -11 -10 -9 -8 ------- Run | Yrd Mat Mat Mat Traps Triggered 5 | . 2 . 3 Indirectly . | . . . . Trap Hack Attempts . | . . . . Triggered . | . . . . Disarmed . | . . . . Reprogrammed . | . . . . Reused . | . . . . Traps Extracted . | . . . . Installed . | . . . . Triggered . | . . . . Machines | -11 -10 -9 -8 ---------- Run | Yrd Mat Mat Mat Machines Disabled 1 | . 1 . . Max in Single Turn 1 | . 1 . . Machines Repaired . | . . . . Machines Dismantled . | . . . . Machines Sabotaged . | . . . . Overloaded Fab Kills . | . . . . Hacking | -11 -10 -9 -8 --------- Run | Yrd Mat Mat Mat Machines Accessed 2 | . 1 . 1 Terminals . | . . . . Fabricators . | . . . . Repair Stations . | . . . . Recycling Units 1 | . 1 . . Scanalyzers 1 | . . . 1 Garrison Access . | . . . . Total Hacks 4 | . 2 . 2 Successful 1 | . 1 . . Failed 3 | . 1 . 2 Catastrophic . | . . . . Database Lockouts . | . . . . Manual . | . . . . Terminals . | . . . . Fabricators . | . . . . Repair Stations . | . . . . Recycling Units 2 | . 2 . . Scanalyzers 2 | . . . 2 Garrison Access . | . . . . Terminal Hacks . | . . . . Fabricator Hacks . | . . . . Repair Station Hacks . | . . . . Recycling Unit Hacks 1 | . 1 . . Retrieve Components 1 | . 1 . . Scanalyzer . | . . . . Garrison Access Hacks . | . . . . Unauthorized Hacks . | . . . . Terminals . | . . . . Fabricators . | . . . . Repair Stations . | . . . . Recycling Units . | . . . . Scanalyzers . | . . . . Garrison Access . | . . . . Data Cores Recovered 1 | . 1 . . Used . | . . . . Hacking Detections 2 | . 1 . 1 Full Trace Events . | . . . . Feedback Events . | . . . . Feedback Blocked . | . . . . Robot Schematics Acquired . | . . . . Robots Built . | . . . . Authchips . | . . . . Time . | . . . . Total Robot Build Rating . | . . . . Part Schematics Acquired . | . . . . Parts Built . | . . . . Authchips . | . . . . Time . | . . . . Total Part Build Rating . | . . . . Part Studies Acquired . | . . . . Parts Repaired . | . . . . Time . | . . . . Parts Recycled . | . . . . Recycled Matter . | . . . . Retrieved Matter . | . . . . Retrieved Components 10 | . 10 . . Parts Scanalyzed . | . . . . Part Schematics Acquired . | . . . . Parts Damaged . | . . . . Bothacking | -11 -10 -9 -8 ------------ Run | Yrd Mat Mat Mat Used RIF Installer . | . . . . Robots Hacked . | . . . . Non-combat . | . . . . Combat . | . . . . Robot Hacks Applied . | . . . . Relay Couplers Released . | . . . . Fabnet Peak Effective % . | . . . . Robots Rewired . | . . . . Allies Hacked . | . . . . Hacks Repelled . | . . . . Allies | -11 -10 -9 -8 -------- Run | Yrd Mat Mat Mat Total Allies . | . . . . Largest Group . | . . . . Highest-Rated Group . | . . . . Highest-Rated Ally . | . . . . Total Orders . | . . . . Ally Attacks . | . . . . Total Damage . | . . . . Kills . | . . . . Allies Corrupted . | . . . . Allies Melted . | . . . . Intel | -11 -10 -9 -8 ------- Run | Yrd Mat Mat Mat Active Infowar (turns) 353 | . 353 . . T.N.C. 353 | . 353 . . Robot Analysis Total . | . . . . Derelict Logs Recovered . | . . . . Drone Launches . | . . . . Drone Recoveries . | . . . . Exploration | -11 -10 -9 -8 ------------- Run | Yrd Mat Mat Mat Turns Passed 1665 | 85 692 361 527 Spaces Moved 878 | 65 417 184 212 Core 23 | 17 3 . 3 Treads 396 | . 13 184 199 Legs 459 | 48 401 . 10 Wheels . | . . . . Hover . | . . . . Flight . | . . . . Fastest Speed 50 | 50 120 160 160 Average Speed 142 | 101 124 160 176 Slowest Speed 950 | 120 250 160 950 Overloaded Moves . | . . . . Propulsion Burnouts . | . . . . Robots Hopped . | . . . . Potential Cave-ins . | . . . . Cave-ins Triggered . | . . . . Exploration Rate (%) 30 | 5 64 21 30 Regions Visited 3 Branch Regions . Pre-discovered Areas . | . . . . Known Exits Taken 2 | . 1 1 . Unknown Exits Taken 1 | 1 . . . Scrap Searched . | . . . . Spaces Dug . | . . . . Terrain Destroyed 103 | . 8 43 52 Melee . | . . . . Projectile . | . . . . AOE 103 | . 8 43 52 Terrain Rammed . | . . . . Walls Destroyed . | . . . . Machines Disabled . | . . . . Actions | -11 -10 -9 -8 --------- Run | Yrd Mat Mat Mat Total 1099 | 74 504 219 302 Wait 19 | . 16 . 3 Move 875 | 64 416 183 212 Hop . | . . . . Pick Up 32 | 1 13 6 12 Fast Attach 22 | 5 6 3 8 Attach 22 | . 3 1 18 Detach . | . . . . Swap 14 | . 5 2 7 Drop 5 | . . . 5 Fire 92 | 4 45 24 19 Melee 18 | . . . 18 Ram . | . . . . Kick . | . . . . Crush . | . . . . Escape Stasis . | . . . . Rewire . | . . . . Trap . | . . . . Miscellaneous . | . . . . Route ------- -11/Scrapyard -10/Materials (discovered 2 exits: *Mat / *Min) -9/Materials -8/Materials History --------- Turn | Location | Event 2 | -11/Scrapyard | Met Revision 17 61 | -11/Scrapyard | Discovered new exit (range 8) 86 | -11/Scrapyard | Entered Materials 300 | -10/Materials | Build established: Mutant 371 | -10/Materials | Discovered new exit (range 16) 658 | -10/Materials | Discovered new exit (range 14) 674 | -10/Materials | Identified exit to Mines 776 | -10/Materials | Identified exit to Materials 778 | -10/Materials | Entered another Materials area 778 | -9/Materials | Evolved 2 slots: Propulsion x1, Utility x1 1114 | -9/Materials | Discovered new exit (range 4) 1117 | -9/Materials | Identified exit to Materials 1139 | -9/Materials | Entered another Materials area 1139 | -8/Materials | Evolved 2 slots: Propulsion x1, Utility x1 1577 | -8/Materials | Lost 4 parts (3n1u) 1648 | -8/Materials | Core integrity fell below 50% 1666 | -8/Materials | Self-destructed Last Messages --------------- 01643_ Critical hit (Burn: +37). 01644_ T-07 Excavator destroyed. 01646_ K-01 Serf collects debris. 01648_ Knocked back. 01650_ K-01 Serf collects debris. 01651_ Acquired 5 matter. 01654_ Imp. Ion Engine destroyed. 01654_ Aluminum Leg destroyed. 01656_ K-01 Serf destroyed. 01657_ Extracted 100 matter. 01657_ K-01 Serf collects debris. 01658_ G-47 Trooper destroyed. 01659_ Aluminum Leg destroyed. 01659_ Critical hit (Burn: +37). 01661_ Aluminum Leg destroyed. 01662_ K-01 Serf collects debris. 01663_ Acquired Aluminum Leg. 01664_ Penetrated by Slug. 01664_ Axe destroyed. 01665_ Aluminum Leg destroyed. Map ----- +----------------------------------------------------+ | ??????????????????????????????# # !!!## ## | | ??????????????????????????????# # !!!## ##? | | ???????????????????????? """ # # !! #### ##?? | | ???????????????????????? """ + + ^ #### #??? | | ???????????????????????? """ #% # + #??? | | ??????????????????????????????# # ######?# | | ??????????????????????????????# %#####+##??????# | | ??????????????????????????????# #???????? | | ??????????????????????????????# #???????? | | ??????????????????????????????#% % #???????? | | ??????????????????????????????#* ########???????? | | ??????????????????????????????#% #??????????????? | | ?????????????????????????????## #??????????????? | | ???????????????????????#?????## #??????????????? | | ???????????????????????# ????## #???????????#??? | | ???????????????????????# ?????# %#???????????#"?? | | ???????????????????????# ?????# % #???????????# "? | | ???????????????????????# ?????# #???????????# | | ???????????????????????# ?????# %#???????????# | | ???????????????????????# ?????# w#???????????# | | ???????????????????????# ????## ##????????????## | | ????????????????"" ???## ####;H % ##########+### | | ????????????????""" # g%g % | | ????????????????""" + *=% ^ | | ????????????????""" # [%!Y % % ^ | | ??????????????????????# k@#### % ##"########### | | ??????????????????????# #??###"##"#?#?????????## | | ????????????????????? ; #????? ? #?########??# | | ????????????????????### #????? ?#?# # | | ??????????????????????# ????? #?# + | | ??????????????????????# #????? """ #?# # | | ?????????????????????? #????? """ #?# ??# | | ?????????????????????######????? """ ############# | | ????????????????????????????????? ???## # | | ????????????????????????????????? ????# """" # | | ?????????????????????????????????#????# ""S"" + | | ??????????????????????????????????????# "" "" # | | ??????????????????????????????????????# # | | ??????????????????????????????????????# ## | | ??????????????????????????????????????# # | | ??????????????????????????????????????# [ # | | ??????????????????????????????????????###### #### | | ???????????????????????????????????????????###??# | | ????????????????????????????????????????????????# | | ????????????????????????????????????????????????# | | ????????????????????????????????????????????????## | | | | | | | | | +----------------------------------------------------+ Best States ------------- Heat Dissipation 31 Energy Generation 14 Energy Capacity 275 Matter Stores 284 Matter Capacity 300 Sight Range 16 Terrain Scan Density 10 Armor Coverage 450 Evasion (%) 55 Targeting Accuracy 6 Recoil Reduction 4 Item Schematics ----------------- None Robot Schematics ------------------ None Fabricated ------------ Nothing Repaired ---------- Nothing Studied --------- None Alien Tech Used ----------------- None Achievements -------------- None Challenges ------------ None Game ------ Seed PhaseBlanketBiocell Manual? 0 Play Time 00:17:04 Cumulative 63.0 hours Start 2026.06.27 @ 00:39:17 End 2026.06.27 @ 00:55:57 Sessions 1 Manual Loads 0 Difficulty Rogue Special Mode None Game No. 70 Rogue 16 Adventurer 54 Explorer 0 Win Type - Total 1 Types 1/0/0/0/0/0/0/0/0/0 Lore% 32 Gallery% 40 Achievement% 38 Wizard Run 0 Options --------- Layout 1 ASCII 0 Keyboard 0 Movement Mouse Keybinds 1 Fullscreen 1 Font 24/Terminus Map View 50x35 Zoom Use 0% Tactical HUD 1 Map Filters NONE Filters NONE Steam 1 RUN: e06ad5bd-afb3-46ef-98b1-b318116a73e6